bitfinex-derivatives/quotes_ETHF0:USTF0_20250427
["timestamp","ask_amount","ask_price","bid_price","bid_amount"]
[1745722867481,0.00498971,1814.4,1814.3,6.49219]
[1745722872194,0.00498971,1814.4,1814.3,11.49219]
[1745722872394,0.00498971,1814.4,1814.3,6.49219]
[1745722872984,1.10680971,1814.4,1814.3,6.49219]
[1745722875194,0.00498971,1814.4,1814.3,6.49219]
[1745722875601,1.10680971,1814.4,1814.3,6.49219]
[1745722876195,1.10680971,1814.4,1814.3,9.69999]
[1745722877288,1.10680971,1814.4,1814.3,8.10469]
[1745722879093,6.10680971,1814.4,1814.3,3.795]
[1745722879299,1.10219,1813.8,1813.7,14.36162538]
[1745722879700,1.10219,1813.8,1813.7,16.04512538]
[1745722879993,1.10219,1813.8,1813.7,17.14737538]
[1745722880194,1.10217,1813.9,1813.8,1.10214]
[1745722880493,1.10217,1813.9,1813.8,2.78564]
[1745722880803,1.10217,1813.9,1813.8,3.61304]
[1745722882299,1.10217,1813.9,1813.8,2.5109]
[1745722882499,2.66667,1813.9,1813.8,2.5109]
[1745722882704,2.66667,1813.9,1813.8,1.6835]
[1745722883000,1.10219,1813.8,1813.7,8.10005]
[1745722883202,2.66669,1813.8,1813.7,8.10005]
[1745722883500,2.66669,1813.8,1813.7,6.9978]
[1745722884088,7.52791,1813.8,1813.4,3.79]
[1745722884294,1.10237,1813.5,1813.4,3.79]
[1745722884494,1.10237,1813.5,1813.4,5.3973]
[1745722885795,2.81877,1813.5,1813.4,5.3973]
[1745722886297,6.54077,1813.5,1813.4,3.79]
[1745722887208,2.81877,1813.5,1813.4,3.79]
[1745722889704,2.75612,1813.4,1813.1,4.6355]
[1745722890008,1.10255,1813.2,1813.1,4.6355]
[1745722890301,1.10255,1813.2,1813.1,3.791]
[1745722890496,1.10261,1813.1,1813.0,4.5979]
[1745722890696,3.51701,1813.1,1813.0,4.5979]
[1745722890896,3.51701,1813.1,1813.0,3.791]
[1745722891199,3.51701,1813.1,1812.9,1.6631]
[1745722891200,1.10274,1812.9,1812.8,3.2078]
[1745722891703,1.10274,1812.9,1812.8,4.3106]
[1745722891901,1.10274,1812.9,1812.8,2.7659]
[1745722892096,1.10274,1812.9,1812.8,1.6631]
[1745722892902,1.10274,1812.9,1812.8,2.7659]
[1745722893400,1.10274,1812.9,1812.8,1.6631]
[1745722894303,1.10274,1812.9,1812.8,2.7659]
[1745722895409,1.5949,1813.0,1812.7,4.5797]
[1745722895410,1.1028,1812.8,1812.7,3.792]
[1745722895603,3.5617,1812.8,1812.7,3.792]
[1745722896796,3.5617,1812.8,1812.7,4.89486]
[1745722898503,3.5617,1812.8,1812.7,3.792]
[1745722898705,3.5617,1812.8,1812.7,4.89486]
[1745722899103,3.5617,1812.8,1812.7,6.57586]
[1745722899410,1.1027,1813.0,1812.9,1.10274]
[1745722899599,3.722,1813.3,1813.0,2.75656]
[1745722899808,3.722,1813.3,1813.2,1.10255]
[1745722900004,3.722,1813.3,1813.2,4.31035]
[1745722900310,1.10225,1813.7,1813.6,1.10231]
[1745722900607,1.10225,1813.7,1813.6,4.89131]
[1745722900809,1.10225,1813.7,1813.6,3.789]
[1745722901002,1.10225,1813.7,1813.6,4.89131]
[1745722901397,1.10225,1813.7,1813.6,3.789]
[1745722901608,2.68785,1813.7,1813.6,3.789]
[1745722901811,2.68785,1813.7,1813.6,6.60121]
[1745722902711,2.68785,1813.7,1813.6,5.4989]
[1745722902906,2.68785,1813.7,1813.6,6.60121]
[1745722904709,1.5856,1813.7,1813.6,6.60121]
[1745722905211,2.68785,1813.7,1813.6,6.60121]
[1745722905406,1.95361,1813.8,1813.7,1.10225]
[1745722905612,3.2078,1813.9,1813.8,1.10219]
[1745722905907,4.30993,1813.9,1813.8,1.10219]
[1745722906103,1.10219,1813.8,1813.7,2.6729]
[1745722906507,5.88808,1813.9,1813.8,1.10219]
[1745722906709,4.30998,1813.9,1813.8,2.67289]
[1745722907109,1.10218,1813.9,1813.8,2.67289]
[1745722908210,4.82418,1813.9,1813.8,2.67289]
[1745722909115,4.82418,1813.9,1813.8,1.5707]
[1745722909310,1.10218,1813.9,1813.8,2.67289]
[1745722909713,1.10218,1813.9,1813.8,1.5707]
[1745722910011,1.10218,1813.9,1813.8,2.67289]
[1745722910209,4.82418,1813.9,1813.8,2.67289]
[1745722911612,4.82418,1813.9,1813.8,1.5707]
[1745722912501,5.63838,1813.9,1813.8,2.67289]
[1745722914819,3.722,1813.9,1813.8,2.67289]
[1745722915215,1.10201,1814.1,1814.0,1.10207]
[1745722915817,1.10201,1814.1,1814.0,3.62887]
[1745722916113,4.82401,1814.1,1814.0,3.62887]
[1745722916416,3.722,1814.1,1814.0,3.62887]
[1745722917011,4.82401,1814.1,1814.0,3.62887]
[1745722917409,8.03181,1814.1,1814.0,2.5268]
[1745722917712,4.82401,1814.1,1814.0,3.62887]
[1745722919020,4.82401,1814.1,1814.0,2.5268]
[1745722919821,4.82401,1814.1,1814.0,3.62887]
[1745722922224,1.10201,1814.1,1814.0,3.62887]
[1745722923125,4.82401,1814.1,1814.0,3.62887]
[1745722923320,4.82401,1814.1,1814.0,2.5268]
[1745722923624,1.10207,1814.0,1813.9,4.88913]
[1745722923822,3.58477,1814.0,1813.9,4.88913]
[1745722924316,3.58477,1814.0,1813.9,6.52313]
[1745722924517,1.10207,1814.0,1813.9,6.52313]
[1745722925233,4.82407,1814.0,1813.9,6.52313]
[1745722927830,3.722,1814.0,1813.9,6.52313]
[1745722928028,3.722,1814.0,1813.9,14.73093]
[1745722928228,1.10196,1814.2,1814.1,1.10201]
[1745722928433,1.10196,1814.2,1814.1,4.30981]
[1745722928823,1.10196,1814.2,1814.1,5.12161]
[1745722929334,4.82396,1814.2,1814.1,5.12161]
[1745722930434,4.82396,1814.2,1814.1,3.2078]
[1745722930732,5.62986,1814.2,1814.1,3.2078]
[1745722932634,5.62986,1814.2,1814.1,4.30981]
[1745722932833,5.62986,1814.2,1814.1,6.77901]
[1745722933036,3.722,1814.2,1814.1,6.77901]
[1745722933234,1.10192,1814.3,1814.2,1.10195]
[1745722933433,1.10685971,1814.4,1814.3,1.10189]
[1745722933636,1.10685971,1814.4,1814.3,2.71619]
[1745722933832,1.10187,1814.4,1814.3,2.71619]
[1745722934334,4.82387,1814.4,1814.3,2.71619]
[1745722935540,6.50897,1814.4,1814.3,2.71619]
[1745722936240,6.50897,1814.4,1814.3,2.71159896]
[1745722937435,3.722,1814.4,1814.3,5.91939896]
[1745722938243,1.10178,1814.5,1814.4,1.10182]
[1745722938542,1.10178,1814.5,1814.4,3.50772]
[1745722938846,3.66005,1814.6,1814.5,1.10176]
[1745722939043,2.81785,1814.6,1814.5,1.10176]
[1745722939231,2.81785,1814.6,1814.5,2.69226]
[1745722940243,6.53985,1814.6,1814.5,2.69226]
[1745722941249,3.722,1814.6,1814.5,6.47426]
[1745722942146,1.88919,1814.7,1814.6,1.1017]
[1745722942444,1.88919,1814.7,1814.6,3.647]
[1745722943246,5.61119,1814.7,1814.6,3.647]
[1745722944448,4.5095,1814.7,1814.6,3.647]
[1745722944751,5.61114,1814.7,1814.6,3.647]
[1745722945247,3.722,1814.7,1814.6,6.8548]
[1745722946251,4.43529,1815.0,1814.9,1.10152]
[1745722947042,3.3338,1815.0,1814.9,2.76102]
[1745722947249,6.2272,1815.0,1814.9,2.76102]
[1745722947553,3.722,1815.0,1814.9,2.76102]
[1745722948154,3.722,1815.0,1814.9,10.96882]
[1745722949153,2.3811,1815.3,1815.2,1.10134]
[1745722949347,3.48238,1815.3,1815.2,4.88234]
[1745722949647,3.48238,1815.3,1815.2,3.781]
[1745722950045,6.69018,1815.3,1815.2,4.88234]
[1745722950240,7.20438,1815.3,1815.2,4.88234]
[1745722950445,7.20438,1815.3,1815.2,3.781]
[1745722950747,7.20438,1815.3,1815.2,13.09014]
[1745722950748,2.6148,1815.3,1815.2,13.09014]
[1745722950949,1e-05,1815.3,1815.2,13.09014]
[1745722951255,1.10087,1816.0,1815.9,1.10088]
[1745722951560,1.10098,1815.8,1815.7,4.88197]
[1745722951849,1.10096,1815.9,1815.8,1.10095]
[1745722952154,1.10098,1815.8,1815.7,4.88201]
[1745722952656,3.52018,1815.8,1815.7,3.781]
[1745722953156,7.24218,1815.8,1815.7,3.781]
[1745722954157,7.24218,1815.8,1815.7,4.88204]
[1745722954553,7.24218,1815.8,1815.7,3.781]
[1745722954855,7.24218,1815.8,1815.7,4.88204]
[1745722955251,7.24218,1815.8,1815.7,3.781]
[1745722955649,7.24218,1815.8,1815.7,4.88204]
[1745722956156,6.1412,1815.8,1815.7,4.88204]
[1745722956356,5.2957,1815.8,1815.7,4.88204]
[1745722956756,5.2957,1815.8,1815.7,6.55804]
[1745722957256,3.722,1815.8,1815.7,6.55804]
[1745722957450,3.722,1815.8,1815.7,10.61074]
[1745722963650,4.82298,1815.8,1815.7,7.40294]
[1745722963858,3.722,1815.8,1815.7,7.40294]
[1745722964757,5.3964,1815.8,1815.7,7.40294]
[1745722964958,6.49738,1815.8,1815.7,7.40294]
[1745722965158,5.3964,1815.8,1815.7,7.40294]
[1745722965859,6.49738,1815.8,1815.7,7.40294]
[1745722966061,5.3964,1815.8,1815.7,7.40294]
[1745722967058,3.722,1815.8,1815.7,7.40294]
[1745722967251,3.722,1815.8,1815.7,10.61074]
[1745722969568,3.722,1815.8,1815.7,15.61074]
[1745722969960,3.722,1815.8,1815.7,10.61074]
[1745722974165,6.1981,1815.8,1815.7,10.61074]
[1745722975969,7.29908,1815.8,1815.7,10.61074]
[1745722976157,7.29908,1815.8,1815.7,9.75984]
[1745722976562,6.1981,1815.8,1815.7,9.75984]
[1745722976769,7.29908,1815.8,1815.7,9.75984]
[1745722977172,6.1981,1815.8,1815.7,9.75984]
[1745722977573,7.29908,1815.8,1815.7,9.75984]
[1745722977765,6.1981,1815.8,1815.7,9.75984]
[1745722980076,3.722,1815.8,1815.7,9.75984]
[1745722982476,4.82298,1815.8,1815.7,9.75984]
[1745722982771,6.38208,1815.8,1815.7,9.75984]
[1745722983270,5.2811,1815.8,1815.5,3.2165]
[1745722983472,1.1011,1815.6,1815.5,3.2165]
[1745722983670,3.49619,1815.7,1815.6,1.1011]
[1745722983862,2.3951,1815.7,1815.6,1.1011]
[1745722984067,6.1171,1815.7,1815.6,2.7123]
[1745722984468,3.722,1815.7,1815.6,2.7123]
[1745722984669,3.722,1815.7,1815.6,3.5237]
[1745722985376,4.82304,1815.7,1815.6,3.5237]
[1745722985873,3.722,1815.7,1815.6,3.5237]
[1745722988074,4.82304,1815.7,1815.6,3.5237]
[1745722988270,1.1011,1815.6,1815.5,8.09261]
[1745722988487,3.5598,1815.6,1815.5,8.09261]
[1745722989274,8.0643,1815.6,1815.5,8.09261]
[1745722990275,8.0643,1815.6,1815.5,4.30891]
[1745722990478,8.0643,1815.6,1815.5,8.08391]
[1745722991473,8.0643,1815.6,1815.5,6.9828]
[1745722991673,8.0643,1815.6,1815.5,3.775]
[1745722992269,13.0643,1815.6,1815.5,3.775]
[1745722992470,1.10122,1815.4,1815.3,3.7807]
[1745722992978,1.10122,1815.4,1815.3,3.772]
[1745722993175,4.82322,1815.4,1815.3,3.772]
[1745722993974,4.82322,1815.4,1815.3,4.87328]
[1745722994179,4.82322,1815.4,1815.3,3.772]
[1745722994775,9.82322,1815.4,1815.3,3.772]
[1745722994975,6.51432,1815.4,1815.3,3.772]
[1745722995377,1.10134,1815.2,1815.1,0.0087]
[1745722995780,1.1014,1815.1,1815.0,3.772]
[1745722995987,2.7925,1815.1,1815.0,3.772]
[1745722996283,6.5145,1815.1,1815.0,3.772]
[1745722997778,11.5145,1815.1,1815.0,3.772]
[1745722997978,1.10152,1814.9,1814.8,0.0087]
[1745722998179,1.10158,1814.8,1814.7,6.9798]
[1745722998381,3.63118,1814.8,1814.7,8.08144]
[1745722999078,7.35318,1814.8,1814.7,8.08144]
[1745723000588,7.35318,1814.8,1814.7,6.9798]
[1745723001187,7.35318,1814.8,1814.7,3.772]
[1745723008494,6.53408,1814.8,1814.7,4.87364]
[1745723008790,6.53408,1814.8,1814.7,8.28824]
[1745723009585,4.82358,1814.8,1814.7,8.28824]
[1745723010487,1.92163,1815.1,1815.0,1.10146]
[1745723010693,1.10143,1815.1,1815.0,4.87546]
[1745723011091,6.51283,1815.1,1815.0,4.87546]
[1745723013091,15.72036928,1815.1,1815.0,4.87546]
[1745723013298,15.72036928,1815.1,1815.0,6.54266]
[1745723013590,14.03096928,1815.1,1815.0,6.54266]
[1745723013792,12.92953928,1815.1,1815.0,6.54266]
[1745723014095,9.20753928,1815.1,1815.0,11.54266]
[1745723014293,9.20753928,1815.1,1815.0,13.13866]
[1745723015597,9.15453928,1815.1,1815.0,13.13866]
[1745723018600,1.10113,1815.6,1815.5,1.10116]
[1745723018899,1.10113,1815.6,1815.5,4.87416]
[1745723019100,4.82313,1815.6,1815.5,4.87416]
[1745723019303,6.38363,1815.6,1815.5,4.87416]
[1745723019602,6.38363,1815.6,1815.5,6.59266]
[1745723021704,5.2825,1815.6,1815.5,6.59266]
[1745723021903,3.722,1815.6,1815.5,6.59266]
[1745723022610,3.722,1815.6,1815.5,9.80046]
[1745723023107,2.76701,1816.1,1816.0,1.10085]
[1745723023406,1.10085,1816.0,1815.9,3.77]
[1745723023603,1.5821,1816.0,1815.9,4.87086]
[1745723023908,2.68295,1816.0,1815.9,6.43906]
[1745723024104,5.3041,1816.0,1815.9,6.43906]
[1745723024302,1.10098,1815.8,1815.7,8.07879]
[1745723024899,1.96438,1815.8,1815.7,8.07879]
[1745723025101,5.68638,1815.8,1815.7,8.07879]
[1745723025602,5.68638,1815.8,1815.7,3.77]
[1745723025794,6.51438,1815.8,1815.7,4.87104]
[1745723026213,11.51438,1815.8,1815.7,3.77]
[1745723026417,6.51438,1815.8,1815.7,3.77]
[1745723026908,8.13838,1815.8,1815.7,3.77]
[1745723027109,8.13838,1815.8,1815.7,4.87104]
[1745723028619,8.13838,1815.8,1815.7,3.77]
[1745723028820,8.13838,1815.8,1815.7,4.87104]
[1745723029816,8.13838,1815.8,1815.7,3.77]
[1745723031120,8.13838,1815.8,1815.7,4.87104]
[1745723031720,8.13838,1815.8,1815.7,3.77]
[1745723032221,8.13838,1815.8,1815.7,4.87104]
[1745723032408,8.13838,1815.8,1815.7,4.87974]
[1745723038625,8.13838,1815.8,1815.7,3.7787]
[1745723038821,8.13838,1815.8,1815.7,4.87974]
[1745723040726,15.2452,1815.8,1815.4,3.2078]
[1745723040929,1.10128,1815.3,1815.2,8.07811]
[1745723041229,3.722,1815.3,1815.2,8.07814]
[1745723041728,4.82328,1815.3,1815.2,9.79974]
[1745723041924,3.722,1815.3,1815.2,9.79974]
[1745723042125,4.82328,1815.3,1815.2,9.79974]
[1745723043734,3.722,1815.3,1815.2,14.79974]
[1745723044029,1.10113,1815.6,1815.5,1.10112]
[1745723044230,1.10113,1815.6,1815.5,4.87112]
[1745723044531,2.491,1815.7,1815.6,1.1011]
[1745723044728,3.59204,1815.7,1815.6,1.1011]
[1745723044934,1.1011,1815.6,1815.5,6.49362]
[1745723045132,6.5101,1815.6,1815.5,6.49362]
[1745723046533,5.409,1815.6,1815.5,6.49362]
[1745723046734,3.722,1815.6,1815.5,6.49362]
[1745723053435,3.6653,1815.6,1815.5,6.49362]
[1745723053637,2.56072,1815.6,1815.5,11.49362]
[1745723054231,5.12904,1816.1,1816.0,1.10085]
[1745723054530,5.12904,1816.1,1816.0,4.86685]
[1745723054735,6.73204,1816.1,1816.0,4.86685]
[1745723055238,10.45404,1816.1,1816.0,3.766]
[1745723055635,15.45404,1816.1,1816.0,3.766]
[1745723055936,1.10104,1815.7,1815.6,5.6231]
[1745723056238,4.82304,1815.7,1815.6,7.28234]
[1745723056936,3.722,1815.7,1815.6,7.28234]
[1745723057138,3.722,1815.7,1815.6,10.49014]
[1745723058334,3.722,1815.7,1815.6,15.49014]
[1745723058634,1e-05,1815.7,1815.6,15.49014]
[1745723058839,1.10071,1816.3,1816.2,1.10073]
[1745723059039,2.67511,1816.3,1816.2,4.86673]
[1745723059239,6.39711,1816.3,1816.2,4.86673]
[1745723059734,6.39711,1816.3,1816.2,3.766]
[1745723060239,6.39711,1816.3,1816.2,4.86673]
[1745723064641,6.39707,1816.3,1816.2,4.86673]
[1745723068440,3.722,1816.3,1816.2,4.86673]
[1745723069034,5.3427,1816.3,1816.2,6.56093]
[1745723069742,7.23067,1816.3,1816.2,6.56093]
[1745723071047,7.23067,1816.3,1816.2,3.766]
[1745723071445,7.23067,1816.3,1816.2,4.86673]
[1745723072047,6.13,1816.3,1816.2,4.86673]
[1745723072447,6.13,1816.3,1816.2,6.45583]
[1745723073249,7.23067,1816.3,1816.2,6.45583]
[1745723074051,7.23067,1816.3,1816.2,5.3551]
[1745723074443,6.13,1816.3,1816.2,6.45583]
[1745723074739,7.23067,1816.3,1816.2,6.45583]
[1745723074943,7.23067,1816.3,1816.2,3.766]
[1745723075445,1.10079,1816.1,1816.0,7.9525]
[1745723075837,1.10079,1816.1,1816.0,3.9431]
[1745723076040,1.93289,1816.1,1816.0,3.9431]
[1745723076244,5.65489,1816.1,1816.0,3.9431]
[1745723077040,5.65489,1816.1,1816.0,3.765]
[1745723077840,7.26509,1816.1,1816.0,4.86585]
[1745723078039,5.65489,1816.1,1816.0,4.86585]
[1745723078249,5.65489,1816.1,1816.0,7.39675]
[1745723079346,4.5541,1816.1,1816.0,7.39675]
[1745723079554,5.65489,1816.1,1816.0,7.39675]
[1745723079752,7.36659,1816.1,1816.0,7.39675]
[1745723082853,4.82279,1816.1,1816.0,7.39675]
[1745723084455,3.722,1816.1,1816.0,7.39675]
[1745723084848,3.722,1816.1,1816.0,12.39675]
[1745723085850,3.722,1816.1,1816.0,7.39675]
[1745723086958,3.722,1816.1,1816.0,12.39675]
[1745723089767,3.72578383,1816.1,1816.0,12.39675]
[1745723090061,3.72578383,1816.1,1816.0,7.39675]
[1745723093857,1.1004,1816.8,1816.7,1.10039]
[1745723094355,6.1004,1816.8,1816.7,1.10039]
[1745723095059,8.5639,1816.8,1816.7,1.10039]
[1745723095259,6.1855,1816.8,1816.7,1.10039]
[1745723095560,7.28587,1816.8,1816.7,1.10039]
[1745723095953,6.1855,1816.8,1816.7,1.10039]
[1745723096265,7.28587,1816.8,1816.7,1.10039]
[1745723097062,6.1855,1816.8,1816.7,1.10039]
[1745723097462,7.28587,1816.8,1816.7,1.10039]
[1745723097662,6.1855,1816.8,1816.7,1.10039]
[1745723099363,6.1855,1816.8,1816.7,2.80629]
[1745723099864,6.1855,1816.8,1816.7,1.10039]
[1745723100364,6.1855,1816.8,1816.7,2.67889]
[1745723100860,6.1855,1816.8,1816.7,1.10039]
[1745723101860,6.1855,1816.8,1816.7,2.67889]
[1745723103965,4.5679,1816.8,1816.7,2.67889]
[1745723104359,2.10565,1816.8,1816.7,2.67889]
[1745723104662,3.3255,1817.3,1817.2,1.10013]
[1745723104857,3.3255,1817.3,1817.2,4.86113]
[1745723105164,7.0475,1817.3,1817.2,4.86113]
[1745723105365,7.0475,1817.3,1817.2,6.56473]
[1745723109368,6.2478,1817.3,1817.2,6.56473]
[1745723109566,4.5297,1817.3,1817.2,6.56473]
[1745723109766,3.722,1817.3,1817.2,6.56473]
[1745723110267,2.47022,1817.3,1817.2,6.56473]
[1745723113264,1.28419,1817.3,1817.2,11.56473]
[1745723113463,0.8497,1817.6,1817.5,1.09995]
[1745723113665,0.8497,1817.6,1817.5,8.06475]
[1745723114166,4.5717,1817.6,1817.5,8.06475]
[1745723120063,6.2056,1817.6,1817.5,8.06475]
[1745723127776,6.2056,1817.6,1817.5,9.69415]
[1745723127979,6.2056,1817.6,1817.5,10.53495]
[1745723128178,6.2056,1817.6,1817.5,8.06475]
[1745723130379,7.30548,1817.6,1817.5,8.06475]
[1745723130580,6.2056,1817.6,1817.5,8.06475]
[1745723131872,6.2056,1817.6,1817.5,4.30775]
[1745723132078,6.2056,1817.6,1817.4,5.7959]
[1745723132079,1.09995,1817.5,1817.4,5.7959]
[1745723132276,3.54855,1817.5,1817.4,5.5176]
[1745723132578,3.54855,1817.5,1817.4,4.85601]
[1745723133175,7.27055,1817.5,1817.4,4.85601]
[1745723135780,7.27055,1817.5,1817.4,3.756]
[1745723135980,7.27055,1817.5,1817.4,4.85601]
[1745723138082,7.27055,1817.5,1817.4,3.756]
[1745723147779,7.27055,1817.5,1817.4,6.2017]
[1745723149086,4.82195,1817.5,1817.4,7.30171]
[1745723151485,6.50335,1817.5,1817.4,7.30171]
[1745723153185,6.50335,1817.5,1817.4,6.2017]
[1745723153386,6.50335,1817.5,1817.4,3.756]
[1745723155682,6.50335,1817.5,1817.4,4.1489]
[1745723158188,6.50335,1817.5,1817.4,4.1858]
[1745723158692,6.50335,1817.5,1817.4,4.3638]
[1745723159587,1.10013,1817.2,1817.1,4.30795]
[1745723159982,1.10013,1817.2,1817.1,5.98105]
[1745723160186,4.82213,1817.2,1817.1,1.6731]
[1745723160488,1.10025,1817.0,1816.9,6.9608]
[1745723161189,7.29555,1817.0,1816.9,6.9608]
[1745723162087,7.29555,1817.0,1816.9,8.06111]
[1745723162288,7.29555,1817.0,1816.9,9.62411]
[1745723162888,7.29555,1817.0,1816.9,15.86786693]
[1745723163290,7.29555,1817.0,1816.9,16.96817693]
[1745723163492,7.29555,1817.0,1816.9,15.86786693]
[1745723163989,7.29555,1817.0,1816.9,14.30486693]
[1745723164693,7.29555,1817.0,1816.9,15.40517693]
[1745723164893,7.29555,1817.0,1816.9,15.89246693]
[1745723165088,7.29555,1817.0,1816.9,16.99277693]
[1745723165590,3.722,1817.0,1816.9,16.99277693]
[1745723165797,1.1002,1817.2,1817.1,1.10015]
[1745723165993,1.10019,1817.1,1817.0,3.5387]
[1745723166188,4.82219,1817.1,1817.0,3.53875]
[1745723166799,3.722,1817.1,1817.0,3.53875]
[1745723167095,3.722,1817.1,1817.0,8.53875]
[1745723170501,3.722,1817.1,1817.0,3.53875]
[1745723178008,3.7307,1817.1,1817.0,3.53875]
[1745723178805,3.7307,1817.1,1817.0,6.74655]
[1745723179997,3.2524,1817.1,1817.0,11.74655]
[1745723180203,0.5011413,1817.1,1817.0,11.74655]
[1745723180405,6.5509,1817.7,1817.5,1.09988]
[1745723180607,1.09989,1817.6,1817.5,4.84988]
[1745723181113,4.82189,1817.6,1817.5,3.75]
[1745723181409,6.55029,1817.6,1817.5,4.84995]
[1745723181712,6.55028,1817.6,1817.5,6.43265]
[1745723182712,5.4504,1817.6,1817.5,6.43265]
[1745723182915,6.55028,1817.6,1817.5,6.43265]
[1745723183613,5.4504,1817.6,1817.5,6.43265]
[1745723184617,6.55028,1817.6,1817.5,6.43265]
[1745723184911,2.74987,1817.5,1817.1,14.30186693]
[1745723185106,1.10012,1817.3,1817.2,1.10011]
[1745723185715,2.66092,1817.3,1817.2,1.10011]
[1745723186314,6.38292,1817.3,1817.2,1.10011]
[1745723187016,5.2828,1817.3,1817.2,1.10011]
[1745723187212,6.38287,1817.3,1817.2,1.10011]
[1745723187418,5.2828,1817.3,1817.2,1.10011]
[1745723187723,3.722,1817.3,1817.2,3.53511]
[1745723188924,4.82207,1817.3,1817.2,1.10011]
[1745723189227,6.45347,1817.3,1817.2,1.10011]
[1745723191925,3.722,1817.3,1817.2,1.10011]
[1745723192124,3.722,1817.3,1817.2,2.82281]
[1745723192620,5.3917,1817.3,1817.2,2.82281]
[1745723193129,6.49177,1817.3,1817.2,1.10011]
[1745723196129,5.3917,1817.3,1817.2,1.10011]
[1745723196334,6.49177,1817.3,1817.2,1.10011]
[1745723196524,5.3917,1817.3,1817.2,1.10011]
[1745723197128,3.722,1817.3,1817.2,2.78731]
[1745723197329,3.722,1817.3,1817.2,3.63591]
[1745723205835,3.722,1817.3,1817.2,6.84371]
[1745723207841,3.722,1817.3,1817.2,5.99511]
[1745723213146,3.722,1817.3,1817.2,2.78731]
[1745723213339,3.722,1817.3,1817.2,5.99511]
[1745723214047,6.2335,1817.3,1817.2,5.99511]
[1745723215150,5.4274,1817.3,1817.2,5.99511]
[1745723215447,3.722,1817.3,1817.2,5.99511]
[1745723216746,3.1351,1817.3,1817.2,5.99511]
[1745723217448,3.1351,1817.3,1817.2,10.99511]
[1745723217949,3.1351,1817.3,1817.2,27.23110076]
[1745723218342,3.1351,1817.3,1817.2,22.23110076]
[1745723220050,3.1351,1817.3,1817.2,13.33917693]
[1745723227840,4.7256,1817.3,1817.2,13.33917693]
[1745723229761,0.38424999,1817.3,1817.2,13.33917693]
[1745723232356,0.8374,1817.4,1817.3,1.10018]
[1745723232657,0.8374,1817.4,1817.3,3.62828]
[1745723233158,4.5594,1817.4,1817.3,3.62828]
[1745723235557,1.6945,1817.6,1817.5,1.10006]
[1745723235759,0.84,1817.7,1817.6,1.09999]
[1745723235955,0.84,1817.7,1817.6,3.94316343]
[1745723236157,4.562,1817.7,1817.6,3.94316343]
[1745723236960,0.8438,1817.9,1817.8,1.09987]
[1745723237153,1.6104,1818.1,1818.0,1.09975]
[1745723237354,1.6104,1818.1,1818.0,8.05055]
[1745723238164,5.3324,1818.1,1818.0,8.05055]
[1745723238362,10.3324,1818.1,1818.0,4.84275]
[1745723238860,13.00029,1818.1,1818.0,3.743]
[1745723239060,13.00029,1818.1,1817.9,1.09977]
[1745723239061,13.00035,1818.1,1817.9,4.84177]
[1745723239365,2.66795,1818.0,1817.9,4.84177]
[1745723239568,1.5682,1818.0,1817.9,4.84177]
[1745723240062,6.5682,1818.0,1817.7,8.44394693]
[1745723240264,11.39001,1818.0,1817.8,4.84185]
[1745723240561,1.6505,1817.9,1817.8,4.84185]
[1745723240948,6.6505,1817.9,1817.8,4.84185]
[1745723241258,11.47231,1817.9,1817.8,4.84185]
[1745723241457,10.3725,1817.9,1817.8,4.84185]
[1745723244383,5.3725,1817.9,1817.8,4.84185]
[1745723245380,3.722,1817.9,1817.8,4.84185]
[1745723245684,3.722,1817.9,1817.8,7.41735]
[1745723248685,3.722,1817.9,1817.8,6.55745]
[1745723253885,3.722,1817.9,1817.8,2.81545]
[1745723254085,3.722,1817.9,1817.8,1.09985]
[1745723254290,3.722,1817.9,1817.8,4.84185]
[1745723254475,6.43201,1817.9,1817.8,3.742]
[1745723255284,6.43201,1817.9,1817.4,13.75177333]
[1745723255285,10.3322,1817.9,1817.4,13.75177333]
[1745723255590,4.44432,1817.8,1817.6,1.09994]
[1745723255785,1.6647,1817.7,1817.6,1.09994]
[1745723256288,5.3867,1817.7,1817.6,1.09994]
[1745723258488,5.3867,1817.7,1817.6,2.78424]
[1745723259190,3.722,1817.7,1817.6,2.78424]
[1745723260279,5.3152,1817.7,1817.6,2.78424]
[1745723260685,6.41513,1817.7,1817.6,2.78424]
[1745723260892,6.41513,1817.7,1817.6,1.09994]
[1745723261286,5.3152,1817.7,1817.6,1.09994]
[1745723261686,6.41513,1817.7,1817.6,1.09994]
[1745723263992,5.3152,1817.7,1817.6,1.09994]
[1745723264596,6.41513,1817.7,1817.6,2.78384]
[1745723267298,5.3152,1817.7,1817.6,2.78384]
[1745723269105,6.41513,1817.7,1817.6,2.78384]
[1745723270796,5.3152,1817.7,1817.6,2.78384]
[1745723270996,6.41513,1817.7,1817.6,2.78384]
[1745723271905,1.09999,1817.6,1817.5,3.739]
[1745723272098,6.40829,1817.6,1817.5,4.83906]
[1745723274601,3.722,1817.6,1817.5,4.83906]
[1745723275301,3.722,1817.6,1817.5,6.48146]
[1745723275906,4.82199,1817.6,1817.5,6.48146]
[1745723276108,3.722,1817.6,1817.5,6.48146]
[1745723276307,6.45719,1817.6,1817.5,6.48146]
[1745723276507,6.45719,1817.6,1817.5,3.739]